bitfinex/quotes_ETHUSD_20241023
["timestamp","ask_amount","ask_price","bid_price","bid_amount"]
[1729708399514,0.03793741,2484.1,2483.6,4.02641]
[1729708399682,0.03793741,2484.1,2483.7,4.02613]
[1729708400689,0.03793741,2484.1,2483.8,1.7066133]
[1729708400905,0.03793741,2484.1,2483.7,4.02611]
[1729708401114,4.02568,2484.1,2483.6,3.0]
[1729708401275,0.03793741,2484.0,2483.6,3.0]
[1729708401884,0.03793741,2484.0,2483.6,7.0264]
[1729708402213,0.03793741,2484.0,2483.9,4.02592]
[1729708402413,1.1055,2484.4,2483.9,4.02582]
[1729708402570,0.03756131,2484.0,2483.9,4.02582]
[1729708402769,1.1055,2484.4,2483.9,4.02582]
[1729708403006,0.03756131,2484.0,2483.6,5.30222027]
[1729708403211,1.1055,2484.4,2483.7,0.83022203]
[1729708403377,0.03756131,2483.9,2483.8,4.02604]
[1729708403570,1.1055,2484.4,2484.1,4.02558]
[1729708403871,1.1055,2484.4,2484.0,4.02569]
[1729708403872,0.03756131,2484.3,2484.0,4.02569]
[1729708404181,0.03756131,2484.3,2484.1,4.02559]
[1729708404492,0.03756131,2484.3,2484.1,0.805126]
[1729708405507,0.03756131,2484.3,2484.2,4.02544]
[1729708405915,1.1055,2484.7,2484.1,0.805126]
[1729708405916,4.0248,2484.6,2484.1,0.805126]
[1729708406133,0.03756131,2484.3,2484.1,0.805126]
[1729708406432,4.0248,2484.6,2484.1,0.805126]
[1729708406589,0.03756131,2484.2,2484.1,0.805126]
[1729708406774,8.04968,2484.6,2484.1,0.805126]
[1729708407108,1.1055,2484.7,2484.1,4.91122861]
[1729708407315,0.03756131,2484.5,2484.2,0.89368686]
[1729708407474,1.1055,2484.7,2484.0,4.02564]
[1729708407672,0.03756131,2484.4,2484.1,4.0255]
[1729708407873,5.13015,2484.7,2484.1,4.0255]
[1729708408112,0.03635524,2484.3,2484.1,4.0255]
[1729708408306,5.13015,2484.7,2484.1,4.0255]
[1729708408522,0.03635524,2484.2,2484.1,4.66997075]
[1729708408698,5.13015,2484.7,2484.1,4.75047146]
[1729708408699,1.1055,2484.7,2484.1,4.75047146]
[1729708408917,1.1055,2484.7,2484.2,4.02537]
[1729708409232,1.1055,2484.7,2484.3,4.10577058]
[1729708409441,5.2504132,2485.0,2484.4,4.02504]
[1729708409624,5.2504132,2485.0,2484.4,4.988881]
[1729708410156,1.2262432,2485.0,2484.7,4.02455]
[1729708410639,0.1207432,2485.0,2484.8,4.02436]
[1729708411003,0.1207432,2485.0,2484.7,7.0246]
[1729708411247,0.1207432,2485.0,2484.8,1.104937]
[1729708411397,0.1207432,2485.0,2484.8,4.02445]
[1729708411793,0.1207432,2485.0,2484.7,7.0246]
[1729708412801,0.1207432,2485.0,2484.8,4.10486189]
[1729708412997,0.1207432,2485.0,2484.8,0.08048189]
[1729708413197,0.1207432,2485.0,2484.5,4.02485]
[1729708413414,0.1207432,2485.0,2484.5,5.0850461]
[1729708413603,0.1207432,2485.0,2484.6,4.02475]
[1729708414403,0.1207432,2485.0,2484.7,4.02461]
[1729708414605,0.1207432,2485.0,2484.7,4.02452]
[1729708415006,0.1207432,2485.0,2484.8,4.02438]
[1729708415242,0.1207432,2485.0,2484.9,0.80489]
[1729708415539,0.15741901,2485.0,2484.9,0.80489]
[1729708415699,0.15741901,2485.0,2484.7,4.0246]
[1729708415905,0.15741901,2485.0,2484.6,4.02478]
[1729708416137,0.15741901,2485.0,2484.5,1.0601961]
[1729708416138,4.18164901,2485.0,2484.5,1.0601961]
[1729708416511,0.15741901,2485.0,2484.5,5.0850561]
[1729708416711,0.15741901,2485.0,2484.6,5.3162733]
[1729708417041,0.15741901,2485.0,2484.8,3.0]
[1729708417449,0.15741901,2485.0,2484.6,1.21100561]
[1729708417742,0.15741901,2485.0,2484.6,7.02471]
[1729708418128,0.15741901,2485.0,2484.5,3.0]
[1729708418651,1.1055,2484.9,2484.2,4.02535]
[1729708418803,4.02453,2484.8,2484.2,4.02534]
[1729708419006,4.06124761,2484.8,2484.2,4.65118107]
[1729708419225,4.02463,2484.7,2484.2,0.62584107]
[1729708419434,0.03671761,2484.8,2484.1,4.02547]
[1729708419645,4.02454,2484.8,2484.1,4.02547]
[1729708419938,4.06141761,2484.7,2484.2,3.0]
[1729708420148,0.03671761,2484.7,2484.2,3.0]
[1729708420509,0.03671761,2484.7,2484.2,7.02538]
[1729708420736,4.06136761,2484.7,2484.1,7.02559]
[1729708420946,4.02497,2484.5,2483.9,7.02591]
[1729708421130,5.13036,2484.6,2483.9,7.02591]
[1729708421131,1.1055,2484.6,2484.1,4.02558]
[1729708421315,0.03671761,2484.4,2484.1,4.02558]
[1729708421642,1.1055,2484.6,2484.1,5.130702]
[1729708422145,0.03671761,2484.5,2484.1,5.130702]
[1729708422340,0.03671761,2484.5,2484.4,4.02511]
[1729708422554,1.1055,2484.8,2484.4,4.02511]
[1729708422856,0.03531475,2484.5,2484.4,4.02511]
[1729708423148,1.1055,2484.8,2484.5,4.02493]
[1729708423348,1.2262432,2485.0,2484.5,4.02493]
[1729708423547,1.2262432,2485.0,2484.5,4.02485]
[1729708423846,1.2262432,2485.0,2484.6,4.02471]
[1729708424049,1.2262432,2485.0,2484.5,4.02495]
[1729708424611,1.2262432,2485.0,2484.4,4.02504]
[1729708424612,5.2503832,2485.0,2484.4,4.02504]
[1729708424948,5.2503832,2485.0,2484.4,4.830063]
[1729708425116,5.2503832,2485.0,2484.4,0.805023]
[1729708425446,4.02469,2484.7,2484.2,3.0]
[1729708426151,0.55,2484.8,2484.2,7.02541]
[1729708426152,4.57446,2484.8,2484.2,7.02541]
[1729708426508,0.55,2484.9,2484.3,4.02524]
[1729708426709,4.57437,2484.9,2484.3,4.02524]
[1729708426940,1.2262432,2485.0,2484.3,1.3657222]
[1729708427257,4.02437,2484.9,2484.3,4.02525]
[1729708427623,8.04879,2484.9,2484.3,4.02525]
[1729708427846,4.02437,2484.9,2484.3,4.02525]
[1729708428348,4.57448,2484.8,2484.2,7.02535]
[1729708428537,4.02463,2484.7,2484.2,3.0]
[1729708429043,4.02463,2484.7,2483.9,5.32443489]
[1729708429044,0.55,2484.6,2483.9,0.84159721]
[1729708429246,0.55,2484.6,2483.9,4.04503828]
[1729708429432,4.02495,2484.5,2483.9,4.02584]
[1729708429835,4.02495,2484.5,2483.8,5.55389]
[1729708429836,4.02519,2484.4,2483.8,5.55389]
[1729708430144,4.02519,2484.4,2483.8,9.5799]
[1729708430313,4.02519,2484.4,2483.9,4.02591]
[1729708430514,0.03531475,2484.3,2483.9,4.02591]
[1729708430746,0.03531475,2484.3,2483.9,3.0]
[1729708430953,1.1055,2484.2,2483.7,4.02622]
[1729708431254,1.1055,2484.2,2483.9,4.02583]
[1729708431452,4.02496,2484.5,2484.0,5.72497153]
[1729708431453,0.03531475,2484.1,2484.0,5.72497153]
[1729708431749,1.1055,2484.5,2484.1,4.02545]
[1729708432046,1.1055,2484.5,2484.2,4.02536]
[1729708432244,1.1055,2484.5,2484.3,4.02527]
[1729708432417,1.1055,2484.5,2484.0,5.64443]
[1729708432945,0.55,2484.4,2483.9,4.02582]
[1729708433424,0.55,2484.4,2484.0,4.02568]
[1729708433750,0.55,2484.4,2483.9,9.310673]
[1729708434453,1.1055,2484.5,2484.1,4.02557]
[1729708434617,1.1055,2484.5,2484.0,0.08051017]
[1729708434812,1.1055,2484.5,2484.0,4.62334377]
[1729708435055,5.13052,2484.5,2484.0,0.59766377]
[1729708435915,1.1055,2484.5,2484.0,4.62333377]
[1729708436459,5.13046,2484.5,2484.0,4.62333377]
[1729708436753,5.13046,2484.5,2484.0,4.62339377]
[1729708438132,0.55,2484.3,2483.9,1.259023]
[1729708438422,0.55,2484.3,2483.9,4.02592]
[1729708438760,0.55,2484.4,2483.9,4.02592]
[1729708439120,4.57518,2484.4,2483.9,4.02592]
[1729708439656,0.55,2484.4,2483.9,4.02585]
[1729708439862,0.55,2484.4,2484.0,4.02567]
[1729708440220,0.55,2484.4,2484.0,8.05131]
[1729708440451,1.1055,2484.5,2484.1,0.08051132]
[1729708440655,1.1055,2484.5,2484.1,4.02552]
[1729708440854,1.1055,2484.5,2483.9,7.882255]
[1729708440855,4.02518,2484.4,2483.9,7.882255]
[1729708441162,5.13053,2484.5,2484.0,4.02574]
[1729708442067,0.55,2484.7,2484.3,4.02521]
[1729708442235,5.12983,2484.9,2484.4,4.02509]
[1729708442434,1.1055,2484.9,2484.4,4.02509]
[1729708443063,1.1055,2484.9,2484.5,4.02493]
[1729708443220,1.1055,2484.9,2484.6,4.02472]
[1729708443424,1.1055,2484.9,2484.4,4.02508]
[1729708443914,1.1055,2484.9,2484.3,8.05035]
[1729708443915,4.02447,2484.8,2484.3,8.05035]
[1729708444115,5.12984,2484.9,2484.3,4.02515]
[1729708444859,4.02449,2484.8,2484.3,4.02515]
[1729708445016,4.02449,2484.8,2484.3,5.0800987]
[1729708445215,5.12984,2484.9,2484.3,9.1052987]
[1729708445423,4.02449,2484.8,2484.3,5.0800987]
[1729708446543,4.57446,2484.8,2484.2,4.02534]
[1729708446749,0.1207432,2485.0,2484.5,3.79550732]
[1729708446948,0.1207432,2485.0,2484.3,4.6028]
[1729708446949,0.1207432,2485.0,2484.9,4.0243]
[1729708447358,0.1207432,2485.0,2484.8,3.0]
[1729708447560,0.1207432,2485.0,2484.6,4.02476]
[1729708447779,0.1207432,2485.0,2484.5,1.6028]
[1729708448088,5.1298,2484.9,2484.3,3.0]
[1729708448383,4.02448,2484.8,2484.3,8.07094951]
[1729708448583,4.02448,2484.8,2484.3,7.02516]
[1729708448788,1.1055,2484.9,2484.3,4.02517]
[1729708449095,0.55,2484.8,2484.4,4.02505]
[1729708449790,1.1055,2484.9,2484.5,4.02485]
[1729708450163,1.1055,2484.9,2484.6,4.02476]
[1729708450568,0.1207432,2485.0,2484.7,4.02451]
[1729708450850,0.1207432,2485.0,2484.7,4.02455]
[1729708451250,0.1207432,2485.0,2484.5,4.02484]
[1729708451789,0.1207432,2485.0,2484.4,4.02511]
[1729708451949,4.02436,2484.9,2484.4,5.17824597]
[1729708452792,4.02436,2484.9,2484.4,9.20324597]
[1729708452998,4.1449632,2485.0,2484.5,4.02494]
[1729708453783,4.1449632,2485.0,2484.4,9.20318597]
[1729708453784,4.02434,2484.9,2484.4,9.20318597]
[1729708454398,1.1055,2484.7,2484.2,0.84317695]
[1729708454609,1.1055,2484.7,2484.3,1.04629773]
[1729708454892,5.13015,2484.7,2484.2,4.02531]
[1729708455079,5.13015,2484.7,2484.3,1.04636367]
[1729708455401,5.13015,2484.7,2484.3,1.04637823]
[1729708455691,1.1055,2484.7,2484.3,4.02525]
[1729708455894,5.13013,2484.7,2484.3,1.18938869]
[1729708456095,5.13013,2484.7,2484.2,4.10587068]
[1729708456254,5.13013,2484.7,2484.3,1.0463745]
[1729708456869,4.02479,2484.6,2484.3,1.0463745]
[1729708457067,1.1055,2484.7,2484.2,0.08050073]
[1729708457257,1.1055,2484.7,2484.2,4.10586073]
[1729708457462,0.035245,2484.6,2484.3,5.0717324]
[1729708457669,0.035245,2484.6,2484.3,4.02527]
[1729708458093,5.13021,2484.7,2484.2,0.84317695]
[1729708458293,0.03544029,2484.5,2484.1,11.89411695]
[1729708458604,0.03544029,2484.4,2484.3,4.02527]
[1729708458802,1.1055,2484.7,2484.3,1.04662754]
[1729708459009,4.0248,2484.6,2484.3,1.04663396]
[1729708459303,4.02496,2484.5,2484.1,7.02558]
[1729708459512,4.06023029,2484.6,2484.2,1.04679513]
[1729708459801,0.03544029,2484.5,2484.1,1.04678678]
[1729708460001,4.06048029,2484.5,2484.0,3.0]
[1729708460206,4.06048029,2484.5,2483.9,5.72550195]
[1729708460207,1.1055,2484.3,2483.9,3.0]
[1729708460373,1.1055,2484.3,2484.0,4.02566]
[1729708460799,0.03544029,2484.2,2484.0,4.02566]
[1729708460985,1.1055,2484.3,2484.0,4.02566]
[1729708461294,1.1055,2484.3,2484.1,4.02556]
[1729708461458,1.1055,2484.3,2484.0,4.02575]
[1729708462183,1.1055,2484.3,2483.9,4.86908695]
[1729708462387,4.02552,2484.2,2483.8,0.84317695]
[1729708462575,4.02552,2484.2,2483.7,4.86931695]
[1729708462772,4.02552,2484.2,2483.8,5.07296554]
[1729708463094,1.1055,2483.9,2483.6,0.84317695]
[1729708463269,1.1055,2483.9,2483.5,0.84317695]
[1729708463476,1.1055,2483.9,2483.4,1.04683022]
[1729708463477,4.57619,2483.8,2483.4,1.04683022]
[1729708463677,4.02632,2483.7,2483.2,6.47011695]
[1729708463858,4.02632,2483.7,2483.3,1.04686554]
[1729708464064,8.05265,2483.7,2483.3,1.04687848]
[1729708464305,1.1055,2483.5,2483.1,4.87038695]
[1729708464463,5.13208,2483.5,2483.0,4.02738]
[1729708464663,4.02689,2483.4,2482.9,4.87061695]
[1729708464968,4.02709,2483.2,2482.7,6.51972695]
[1729708465163,1.1055,2483.1,2482.7,4.02775]
[1729708465407,1.1055,2483.1,2482.8,4.02759]
[1729708465604,1.1055,2483.1,2482.7,5.18378637]
[1729708465762,1.1055,2483.1,2482.8,4.02763]
[1729708465966,1.1055,2483.1,2482.5,0.84317695]
[1729708466198,4.02772,2482.8,2482.3,4.87167695]
[1729708466503,4.02772,2482.8,2482.1,1.6608]
[1729708466504,5.13356,2482.6,2482.1,4.02874]
[1729708466810,5.13356,2482.6,2481.9,8.05809]
[1729708466990,1.1055,2482.4,2481.7,4.87255695]
[1729708467301,1.1055,2482.4,2481.7,4.11004549]
[1729708467302,4.57862,2482.3,2481.7,4.11004549]
[1729708467498,0.55,2482.3,2481.9,4.02909]
[1729708467709,1.1055,2482.2,2481.7,0.08058129]
[1729708467891,8.05788,2482.1,2481.5,4.02966]
[1729708468086,8.05788,2482.1,2481.3,4.03004]
[1729708468087,0.55,2482.1,2481.7,4.0294]
[1729708468257,4.57892,2482.1,2481.6,4.0296]
[1729708468459,4.02903,2482.0,2481.5,4.02969]
[1729708468897,8.05815,2482.0,2481.5,4.02969]
[1729708469106,8.05815,2482.0,2481.0,1.5698]
[1729708469107,4.02941,2481.8,2480.7,6.17338427]
[1729708469307,4.02941,2481.8,2481.2,4.03016]
[1729708469308,8.0588,2481.8,2481.2,4.03016]
[1729708469507,8.0588,2481.8,2481.1,4.0304]
[1729708469508,0.55,2481.7,2480.7,5.33020732]
[1729708469666,1.1055,2481.9,2481.3,4.03014]
[1729708469667,0.55,2481.8,2481.3,4.03014]
[1729708470092,4.57935,2481.8,2481.3,4.03014]
[1729708470311,1.1055,2481.7,2481.2,4.0302]
[1729708470611,4.02966,2481.6,2481.0,8.06098]
[1729708470766,4.02966,2481.6,2481.1,4.03046]
[1729708470967,1.1055,2481.7,2481.2,4.03028]
[1729708471178,5.13509,2481.7,2481.2,4.03019]
[1729708471376,5.13509,2481.7,2481.0,8.06111]
[1729708471377,4.02977,2481.6,2481.0,8.06111]
[1729708471591,4.03014,2481.3,2480.9,4.03072]
[1729708471792,1.1055,2481.2,2480.7,3.0]
[1729708472014,5.13584,2481.2,2480.7,3.0]
[1729708472385,5.71444365,2481.2,2480.7,3.0]
[1729708472693,1.68410365,2481.2,2480.7,4.03109]
[1729708472921,1.68410365,2481.2,2480.1,3.79550732]
[1729708472922,5.13605,2481.1,2480.5,4.03137]
[1729708473075,5.13605,2481.1,2480.5,8.06271]
[1729708473412,5.13605,2481.1,2480.6,4.03122]
[1729708473708,1.1055,2481.1,2480.7,4.03102]
[1729708474008,1.1055,2481.1,2480.7,8.06205]
[1729708474207,1.1055,2481.1,2480.7,4.03102]
[1729708474789,1.1055,2481.1,2480.8,4.03095]
[1729708475099,1.1055,2481.1,2480.6,4.03119]
[1729708475287,1.1055,2481.1,2480.5,4.03132]
[1729708475481,1.1055,2481.1,2480.7,4.03109]
[1729708476428,1.1055,2481.1,2480.3,5.65106]
[1729708476429,5.13601,2481.1,2480.3,5.65106]
[1729708476641,1.1055,2480.8,2480.3,4.03166]
[1729708476916,1.1055,2480.8,2480.7,4.03112]
[1729708477121,1.1055,2481.2,2480.8,4.03092]
[1729708477283,1.1055,2481.2,2480.7,4.03112]
[1729708477480,1.1055,2481.2,2480.7,4.03102]
[1729708477799,1.1055,2481.2,2480.1,6.79550732]
[1729708478016,1.1055,2481.2,2479.8,4.04254]
[1729708478017,1.1055,2481.2,2480.9,4.03069]
[1729708478178,1.1055,2481.2,2480.9,8.0614]
[1729708478378,4.02998,2481.4,2480.9,4.03069]
[1729708479316,4.03015,2481.3,2480.7,4.03101]
[1729708479610,4.03033,2481.2,2480.6,3.0]
[1729708479818,4.03033,2481.2,2480.6,7.03128]
[1729708480616,4.03015,2481.3,2480.7,4.03109]
[1729708480784,4.03015,2481.3,2480.7,8.0621]
[1729708481381,4.03015,2481.3,2480.7,4.03101]
[1729708481610,8.06043,2481.3,2480.7,4.03101]
[1729708481798,4.03081,2480.9,2480.4,4.0316]
[1729708482001,4.03106,2480.8,2480.2,4.03181]
[1729708482216,4.03106,2480.8,2480.3,4.03172]
[1729708482602,4.03081,2480.9,2480.4,4.03159]
[1729708482818,4.03081,2480.9,2480.4,8.0631]
[1729708483112,4.03081,2480.9,2480.4,4.03151]
[1729708483525,3.98081,2480.9,2480.4,4.03151]
[1729708483883,8.0612,2481.1,2480.5,4.03136]
[1729708484145,4.03031,2481.2,2480.6,4.03118]
[1729708484350,4.03031,2481.2,2480.7,4.03103]
[1729708484533,4.03031,2481.2,2480.6,4.03127]
[1729708484534,4.03056,2481.1,2480.6,4.03127]
[1729708484846,4.03056,2481.1,2480.7,4.0311]
[1729708485006,8.61052,2481.3,2480.7,4.03111]
[1729708485206,4.58023,2481.3,2480.8,4.03092]
[1729708485438,4.03058,2481.1,2480.5,4.837637]
[1729708485602,4.03058,2481.1,2480.6,4.03128]
[1729708486447,4.03038,2481.2,2480.4,4.03157]
[1729708486448,4.58073,2481.0,2480.4,4.03157]
[1729708486605,4.03089,2480.9,2480.4,4.03157]
[1729708487006,4.03089,2480.9,2480.4,4.03153]
[1729708487302,4.58073,2481.0,2480.4,4.03153]
[1729708487303,4.03096,2480.8,2480.4,4.03153]
[1729708487509,4.58073,2481.0,2480.5,4.03144]
[1729708489009,4.03052,2481.1,2480.6,4.03113]
[1729708489414,4.03052,2481.1,2480.6,8.06233]
[1729708489839,4.03032,2481.2,2480.7,4.03106]
[1729708490216,4.03032,2481.2,2480.4,4.03147]
[1729708490528,4.03032,2481.2,2480.2,8.04551]
[1729708490529,4.03053,2481.1,2480.6,4.03126]
[1729708491118,4.03053,2481.1,2480.6,8.06246]
[1729708492234,8.06078,2481.2,2480.7,4.03104]
[1729708492435,4.03032,2481.2,2480.7,4.03104]
[1729708492812,8.06072,2481.2,2480.7,4.03104]
[1729708493545,4.03032,2481.2,2480.7,4.03104]
[1729708493949,4.03047,2481.1,2480.7,4.03104]
[1729708495144,4.03047,2481.1,2480.6,4.0312]
[1729708496409,8.06106,2481.1,2480.6,4.0312]
[1729708496609,4.03067,2481.0,2480.6,4.0312]
[1729708496815,4.03047,2481.1,2480.6,4.0312]
[1729708497216,4.03068,2481.0,2480.6,4.0312]
[1729708497734,4.03025,2481.3,2480.6,8.0624]
[1729708497941,4.03047,2481.1,2480.6,4.0312]
[1729708498115,4.58031,2481.2,2480.7,4.03101]
[1729708499063,0.55,2481.2,2480.7,4.03101]
[1729708499351,4.03047,2481.1,2480.7,4.03101]
[1729708500211,0.55,2481.2,2480.4,4.03148]
[1729708500461,0.55,2481.0,2480.4,4.03148]
[1729708500657,4.03047,2481.1,2480.4,4.03148]
[1729708500658,4.0308,2480.9,2480.5,4.03136]
[1729708501470,4.03136,2480.6,2480.0,1.0195]
[1729708501751,4.03169,2480.4,2480.0,4.03224]
[1729708501915,4.03146,2480.5,2480.0,4.03224]
[1729708502111,4.03163,2480.4,2480.0,4.03224]
[1729708502351,4.03188,2480.3,2479.8,4.03251]
[1729708502559,4.03228,2480.0,2479.7,1.0195]
[1729708502755,3.79550732,2480.4,2479.4,1.0195]
[1729708502756,4.58192,2480.3,2479.4,1.0195]
[1729708502957,0.55,2480.3,2480.0,4.03224]
[1729708503158,0.55,2480.4,2480.0,4.03224]
[1729708503318,4.03179,2480.3,2479.7,1.0195]
[1729708503653,4.03179,2480.3,2479.7,5.61803843]
[1729708503654,4.03196,2480.2,2479.7,5.61803843]
[1729708503830,0.55,2480.1,2479.5,4.03305]
[1729708504015,0.55,2479.8,2479.4,4.03322]
[1729708504637,0.55,2479.8,2479.3,0.84317695]
[1729708504840,0.55,2479.8,2479.2,4.03344]
[1729708505015,4.03244,2479.9,2479.2,4.03344]
[1729708505016,4.58234,2480.0,2479.4,4.03323]
[1729708505214,0.55,2479.8,2479.3,4.03325]
[1729708505446,4.58259,2479.8,2479.3,4.03325]
[1729708505656,4.58259,2479.8,2479.3,8.90973695]
[1729708505858,4.58242,2479.9,2479.4,4.0332]
[1729708506224,0.55,2480.1,2479.4,5.13604612]
[1729708506432,4.03201,2480.2,2479.7,4.03272]
[1729708506433,3.0,2480.2,2479.7,4.03272]
[1729708506733,4.58213,2480.1,2479.6,4.87592695]
[1729708507040,4.03227,2480.0,2479.6,4.03275]
[1729708507240,8.06466,2480.0,2479.5,4.87619695]
[1729708507418,4.03258,2479.8,2479.5,0.84317695]
[1729708507622,4.58281,2479.7,2479.3,0.84317695]
[1729708507829,4.58281,2479.7,2479.2,0.84317695]
[1729708507830,4.03298,2479.6,2479.2,0.84317695]
[1729708508029,4.58276,2479.7,2479.2,4.03355]
[1729708508245,0.55,2479.7,2479.2,8.91018695]
[1729708508446,4.58276,2479.7,2479.2,0.84317695]
[1729708509142,4.58276,2479.7,2479.3,0.84317695]
[1729708509348,0.55,2479.7,2479.3,0.84317695]
[1729708509554,0.55,2479.7,2479.5,0.84317695]
[1729708509720,0.55,2479.7,2479.3,5.06027275]
[1729708509721,4.58282,2479.7,2479.4,0.84317695]
[1729708510621,0.55,2479.8,2479.5,0.84317695]
[1729708510848,4.03236,2480.0,2479.6,0.84317695]
[1729708511056,4.03236,2480.0,2479.7,0.84317695]
[1729708511653,4.66262696,2480.4,2479.8,0.84317695]
[1729708511654,0.63095696,2480.4,2479.8,0.84317695]
[1729708511864,4.03201,2480.2,2479.8,0.84317695]
[1729708512170,0.55,2480.0,2479.8,0.84317695]
[1729708512462,4.58242,2479.9,2479.8,0.84317695]
[1729708513140,0.55,2479.9,2479.8,0.84317695]
[1729708513462,0.55,2479.9,2479.8,2.65694449]
[1729708513664,0.55,2479.9,2479.8,0.84183044]
[1729708513861,4.58242,2479.9,2479.8,0.84183044]
[1729708514066,4.58242,2479.9,2479.7,1.26476543]
[1729708514067,4.58242,2479.9,2479.7,0.84183044]
[1729708514267,4.58242,2479.9,2479.6,0.84183044]
[1729708514268,0.55,2479.7,2479.6,0.84183044]
[1729708514574,4.5829,2479.6,2479.5,0.84213563]
[1729708515225,0.55,2479.6,2479.5,0.8421122]
[1729708515932,4.5829,2479.6,2479.5,0.8421122]
[1729708516132,4.5829,2479.6,2479.4,0.8421122]
[1729708516442,0.55,2479.6,2479.5,0.8421122]
[1729708516656,0.55,2479.6,2479.4,0.8421122]
[1729708516972,0.55,2479.6,2479.5,0.8421122]
[1729708517270,0.55,2479.8,2479.5,0.8421122]
[1729708517769,4.03253,2479.9,2479.5,0.8421122]
[1729708517770,0.55,2479.9,2479.5,0.8421122]
[1729708518067,0.55,2479.9,2479.5,4.8751722]
[1729708519464,0.55,2479.9,2479.5,4.03306]
[1729708519666,0.63095696,2480.4,2479.7,4.65770732]
[1729708519972,0.63095696,2480.4,2480.2,4.03182]
[1729708520180,0.63095696,2480.4,2480.0,4.8742422]
[1729708520473,4.03188,2480.3,2479.9,0.8421122]
[1729708520632,4.03207,2480.2,2479.7,4.03272]
[1729708520833,4.03243,2479.9,2479.5,1.7043122]
[1729708521041,4.03243,2479.9,2479.5,0.8622]
[1729708521241,4.03222,2480.1,2479.6,4.03282]
[1729708521430,0.55,2480.2,2479.8,4.03256]
[1729708522252,4.582,2480.2,2479.8,4.03256]
[1729708523880,4.0412,2480.7,2479.8,4.03256]
[1729708523881,4.66199204,2480.8,2480.3,4.03174]
[1729708524061,0.63093204,2480.8,2480.6,4.03126]
[1729708524256,4.03058,2481.1,2480.4,0.8359]
[1729708524257,4.03055,2481.1,2480.5,7.82680732]
[1729708524475,4.0308,2480.9,2480.4,4.86748]
[1729708524674,8.06167,2480.9,2480.4,6.13694473]
[1729708524870,4.03097,2480.8,2480.4,2.10536473]
[1729708525306,8.06169,2480.9,2480.5,4.03143]
[1729708525595,4.03081,2480.9,2480.4,6.13689473]
[1729708525802,4.03081,2480.9,2480.5,1.01685347]
[1729708526164,4.03081,2480.9,2480.4,2.10536473]
[1729708526165,4.03097,2480.8,2480.4,2.10536473]
[1729708526400,4.03097,2480.8,2480.2,4.86783]
[1729708526401,4.03122,2480.7,2480.2,4.86783]
[1729708526557,4.03138,2480.6,2480.2,0.8359]
[1729708526963,4.58114,2480.7,2480.2,4.86771]
[1729708527367,4.58114,2480.7,2480.3,4.03176]
[1729708527763,4.03075,2481.0,2480.4,4.0316]
[1729708527996,4.03137,2480.6,2480.2,0.8359]
[1729708529274,8.06278,2480.6,2480.2,0.8359]
[1729708529571,4.03137,2480.6,2480.2,0.8359]
[1729708530315,0.55,2480.7,2480.3,4.03175]
[1729708530495,4.58124,2480.7,2480.3,0.486765]
[1729708530705,8.06305,2480.5,2480.0,8.66355732]
[1729708530893,4.03166,2480.4,2480.0,4.86805]
[1729708531208,4.03166,2480.4,2480.0,0.8359]
[1729708531405,4.58184,2480.3,2480.0,0.8359]
[1729708531615,0.55,2480.3,2479.8,0.8359]
[1729708531772,4.03218,2480.1,2479.7,4.03271]
[1729708531973,0.10263289,2480.0,2479.7,4.03271]
[1729708533717,0.10263289,2480.0,2479.6,4.86868]
[1729708533926,0.10263289,2480.0,2479.8,4.03249]
[1729708534296,4.03195,2480.2,2479.8,4.03249]
[1729708534489,0.10263289,2479.9,2479.7,4.03266]
[1729708534685,4.03195,2480.2,2479.7,4.03266]
[1729708534886,0.55,2480.1,2479.7,4.03265]
[1729708535104,0.65263289,2480.1,2479.7,4.03265]
[1729708536209,0.65263289,2480.1,2479.7,8.0653]
[1729708537236,0.65263289,2480.1,2479.9,4.03234]
[1729708537401,0.10263289,2480.1,2480.0,4.84135]
[1729708537606,4.03152,2480.5,2480.0,0.8091]
[1729708537942,0.10238089,2480.1,2479.8,0.8091]
[1729708538089,4.0321,2480.1,2479.8,0.8091]
[1729708538424,4.03243,2479.9,2479.5,4.84204]
[1729708538628,4.03243,2479.9,2479.5,0.8091]
[1729708538939,3.02,2480.0,2479.0,0.7543]
[1729708539232,0.55,2479.5,2479.1,4.03364]
[1729708539728,0.55,2479.7,2479.3,4.03332]
[1729708539931,0.10195382,2479.4,2479.2,4.03353]
[1729708540225,0.10195382,2479.3,2479.2,4.03353]
[1729708540440,0.55,2479.7,2479.3,4.03336]
[1729708540670,4.03238,2480.0,2479.4,0.7543]
[1729708540882,4.58216,2480.1,2479.6,4.03289]
[1729708541037,0.55,2480.1,2479.6,4.03281]
[1729708541238,0.55,2480.1,2479.7,7.82823732]
[1729708541488,0.55,2480.1,2479.7,4.03273]
[1729708541777,14.06,2480.6,2479.8,0.8137]
[1729708542083,4.03193,2480.3,2479.8,0.8137]
[1729708542551,4.03201,2480.2,2479.8,0.8137]
[1729708543051,4.0314,2480.6,2480.0,4.03216]
[1729708543253,4.03153,2480.5,2480.0,4.03216]
[1729708543739,0.55,2480.8,2479.5,0.7903]
[1729708543740,0.01,2480.7,2479.5,0.7903]
[1729708543944,4.03209,2480.1,2479.2,0.7675]
[1729708544302,0.55,2479.7,2479.2,0.7675]
[1729708544588,4.03298,2479.6,2479.2,0.7675]
[1729708544797,0.01,2480.1,2479.2,0.7675]
[1729708544798,0.01,2480.1,2479.2,4.80104]
[1729708544978,4.03267,2479.8,2479.3,4.03332]
[1729708545150,4.58247,2479.9,2479.4,4.03321]
[1729708545470,4.03261,2479.8,2479.3,4.03332]
[1729708545880,0.55,2479.9,2479.2,4.56300732]
[1729708546186,4.03285,2479.7,2479.2,8.59648732]